Cogmind - Beta 17.1 --- EXPLORER MODE // 2026.09.02 @ 21:26:31 Player: deadbabe Result: Destroyed by H-55 Commando with Gauss Rifle Performance ------------- Evolutions (0) 0 Regions Visited (4) 800 Robots Destroyed (22) 110 Value Destroyed (532) 532 Prototype IDs (0) 0 Alien Tech Used (0) 0 Bonus (0) 0 TOTAL SCORE: 1442 Bonus ------- None Cogmind --------- Core Integrity 0/250 Matter 239/300 Energy 170/200 System Corruption 0% Temperature Critical (588) Movement Walking (90) Location -8/Recycling Parts ------- > --- POWER (1) -------- Subdweller Power Source > --- PROPULSION (3) --- Improved Aluminum Leg Carbon-fiber Leg VSS Leg > --- UTILITY (2) ------ Targeting Computer > --- WEAPON (2) ------- Beamcaster > --- INVENTORY (5) ---- Subdweller Power Source Experimental Sensor Array Improved Light Armor Plating Barrage Gun Rocket Launcher Peak State ------------ > --- POWER ------------ Subdweller Power Source > --- PROPULSION ------- Improved Aluminum Leg Carbon-fiber Leg VSS Leg > --- UTILITY ---------- Improved Heat Sink Targeting Computer > --- WEAPON ----------- Beamcaster Beamcaster > --- INVENTORY -------- Subdweller Power Source Visual Processing Unit Experimental Sensor Array Barrage Gun Rocket Launcher [Rating: 25] Favorites ----------- Power Subdweller Power Source Engine Subdweller Power Source Propulsion Hover Unit Leg Aluminum Leg Hover Unit Hover Unit Utility Targeting Computer Device Improved Heat Sink Processor Targeting Computer Protection Light Armor Plating Weapon Light Assault Rifle Energy Gun Beamcaster Ballistic Gun Light Assault Rifle Build | -11 -10 -10 -10 -8 ------- Run | Yrd Mat Min Sub Rec Slots Evolved 1 | . 1 . . . Power . | . . . . . Propulsion 1 | . 1 . . . Utility . | . . . . . Weapon . | . . . . . Parts Attached 27 | 7 7 . 10 3 Power 6 | 1 2 . 3 . Engine 6 | 1 2 . 3 . Core . | . . . . . Reactor . | . . . . . Propulsion 11 | 2 3 . 3 3 Treads . | . . . . . Leg 8 | 2 . . 3 3 Wheel . | . . . . . Hover 3 | . 3 . . . Flight . | . . . . . Utility 4 | 2 1 . 1 . Device 1 | . . . 1 . Storage . | . . . . . Processor 1 | 1 . . . . Hackware . | . . . . . Protection 2 | 1 1 . . . Artifact . | . . . . . Weapon 6 | 2 1 . 3 . Energy Gun 3 | . . . 3 . Energy Cannon . | . . . . . Ballistic Gun 3 | 2 1 . . . Ballistic Cannon . | . . . . . Launcher . | . . . . . Special Weapon . | . . . . . Impact Weapon . | . . . . . Slashing Weapon . | . . . . . Piercing Weapon . | . . . . . Special Melee Weapon . | . . . . . Unidentified Prototypes . | . . . . . Parts Lost 5 | . . . 3 2 Power . | . . . . . Propulsion 3 | . . . 3 . Utility 1 | . . . . 1 Weapon 1 | . . . . 1 Highest Loss Streak 2 | . . . 2 2 To Critical Strikes . | . . . . . Average Backups 4 | . 4 5 5 5 Power 1 | . . 1 1 1 Propulsion . | . 1 1 . . Utility 1 | . . 1 2 2 Weapon 1 | . . 1 1 2 Tool/Special . | . . . . . Unused Backups 6 | . . 1 . 5 Power . | . . . . . Propulsion . | . . . . . Utility 3 | . . . . 3 Weapon 3 | . . 1 . 2 Tool/Special . | . . . . . Average Slot Usage (%) 98 | . 96 100 98 94 Engine 12 | . 12 12 12 12 Leg 20 | . 6 . 33 32 Hover 15 | . 27 37 1 . Device 5 | . . . 10 12 Processor 12 | . 12 12 12 12 Protection 6 | . 12 12 1 . Energy Gun 12 | . . . 22 25 Ballistic Gun 12 | . 25 25 2 . Peak Build Rating 25 | 7 8 9 22 25 Average Rating 14 | 5 7 8 20 23 On Entrance 9 | . 7 8 9 21 Avg Prop Armor Cover (%) 8 | . . . 8 . Naked Turns . | . . . . . Heaviest Build 16 | 8 8 8 16 16 Greatest Support 40 | 20 20 18 35 40 Greatest Overweight (x) 1 | . . . 1 . Average Overweight (x) . | . . . . . Largest Inventory Capacity 5 | 5 5 5 5 5 Average Capacity 5 | 5 5 5 5 5 Most Carried 5 | . 5 5 5 5 Average Carried 4 | . 4 5 4 4 Final Capacity 5 | 5 5 5 5 5 Final Carried 5 | . 5 5 5 5 Class Distribution -------------------- 54% | Scavenger-Mutant 45% | Hacker-Mutant Dominant Class ---------------- Hacker-Mutant | -10/Materials Hacker-Mutant | -10/Mines Scavenger-Mutant | -10/Subcaves Hacker-Mutant | -8/Recycling Resources | -11 -10 -10 -10 -8 ----------- Run | Yrd Mat Min Sub Rec Matter Collected 528 | 154 232 . 142 . Remotely . | . . . . . Salvage Created 625 | . 146 . 335 144 Parts 37 | . 17 . 18 2 Haulers Intercepted . | . . . . . Recyclers Shooed . | . . . . . Parts Field Recycled . | . . . . . Retrieved Matter . | . . . . . Parts Self-Destructed . | . . . . . Prevented . | . . . . . Parts Restored . | . . . . . Kills | -11 -10 -10 -10 -8 ------- Run | Yrd Mat Min Sub Rec Combat Hostiles Destroyed 18 | . 6 . 9 3 Guns 18 | . 6 . 9 3 Classes Destroyed 8 | . 2 . 3 3 Turret 1 | . . . 1 . Watcher 3 | . 3 . . . Swarmer 10 | . 6 . 4 . Grunt 1 | . . . . 1 Duelist 1 | . . . . 1 Sentry 1 | . . . 1 . Hunter 1 | . . . . 1 Subdweller 4 | . . . 4 . Best Kill Streak 5 | . 4 . 5 3 Combat Bots Only 4 | . 4 . 4 3 Max Kills in Single Turn 2 | . 2 . 1 1 Gunslinging 1 | . 1 . . . Exploded . | . . . . . Melee . | . . . . . Uniques/NPCs Destroyed . | . . . . . Combat | -11 -10 -10 -10 -8 -------- Run | Yrd Mat Min Sub Rec Hostile Shots Fired 169 | . 19 . 113 37 Missed 51 | . 5 . 44 2 Hits 118 | . 14 . 69 35 Melee 6 | . . . . 6 Projectile 112 | . 14 . 69 29 AOE 2 | . . . 2 . Critical Strikes 1 | . . . . 1 Damage Taken 1264 | . 88 . 755 421 Core 257 | . 23 . 150 84 Absorbed by Shields . | . . . . . Ignored by Resistances 734 | . 61 . 423 250 Regen/Repaired (Parts) 17 | . 17 . . . Core Remaining (%) 100 | 100 . . . . Volleys Fired 96 | . 18 . 70 8 Largest 2 | . 2 . 2 2 Hottest 150 | . 40 . 150 150 Shots Fired 192 | . 36 . 140 16 Gun 192 | . 36 . 140 16 Cannon . | . . . . . Launcher . | . . . . . Special . | . . . . . Kinetic 68 | . 36 . 32 . Thermal 124 | . . . 108 16 Explosive . | . . . . . Electromagnetic . | . . . . . Robot Hit Streak 25 | . 16 . 25 17 Robot Miss Streak 2 | . 1 . 2 . Penetration Max . | . . . . . Secondary Targets 7 | . 1 . 3 3 Max Gunslinging Chain 1 | . 1 . 1 1 Shots Hit Robots 118 | . 29 . 73 16 Core Hits 40 | . 14 . 21 5 Critical Kills . | . . . . . Critical Parts Destroyed . | . . . . . Critical Strikes 3 | . . . 3 . Burn 3 | . . . 3 . Melee Attacks . | . . . . . Impact . | . . . . . Slashing . | . . . . . Piercing . | . . . . . Sneak Attacks . | . . . . . Combat Hostiles . | . . . . . Follow-up Attacks . | . . . . . Damage Inflicted 1699 | . 238 . 1123 338 Guns 1699 | . 238 . 1123 338 Cannons . | . . . . . Explosions . | . . . . . Melee . | . . . . . Ramming . | . . . . . Kinetic 477 | . 238 . 239 . Thermal 1222 | . . . 884 338 Explosive . | . . . . . Electromagnetic . | . . . . . Impact . | . . . . . Slashing . | . . . . . Piercing . | . . . . . Highest Corruption . | . . . . . Average Corruption . | . . . . . Corruption Purged . | . . . . . Corruption Blocked . | . . . . . Overload Shots . | . . . . . Overflow Damage . | . . . . . Projectiles . | . . . . . Explosions . | . . . . . Melee . | . . . . . Knockbacks . | . . . . . Impact . | . . . . . Kinetic . | . . . . . Secondary . | . . . . . Self-Inflicted Damage . | . . . . . Shots . | . . . . . Rammed . | . . . . . Targets Rammed . | . . . . . Kicked . | . . . . . Crushed . | . . . . . Highest Temperature 588 | . 33 . 28 588 Average Temperature 80 | . 12 . 10 283 Received Heat Transfer 390 | . . . 264 126 Effects 7 | . . . . 7 Shutdowns 1 | . . . . 1 Matter Decay 1 | . . . . 1 Short Circuit 2 | . . . . 2 Damage (minor) 1 | . . . . 1 Damage (major) 2 | . . . . 2 Siege Activations . | . . . . . Martial Activations . | . . . . . Shielding Activations . | . . . . . Robots Disrupted . | . . . . . Combat Hostiles . | . . . . . Robots Corrupted . | . . . . . Combat Hostiles . | . . . . . Parts Fried . | . . . . . Impact Corruptions . | . . . . . Robots Melted . | . . . . . Combat Hostiles . | . . . . . Parts Melted . | . . . . . Heat Transferred 2368 | . . . 1776 592 Parts Sabotaged . | . . . . . Parts Stolen . | . . . . . Parts Stripped . | . . . . . Power Chain Reactions . | . . . . . Alert | -11 -10 -10 -10 -8 ------- Run | Yrd Mat Min Sub Rec Maximum Alert Level . | . . . . . Low Security (%) 100 | 100 100 100 . 100 Level 1 . | . . . . . Level 2 . | . . . . . Level 3 . | . . . . . Level 4 . | . . . . . Level 5 . | . . . . . High Security . | . . . . . Max Security . | . . . . . Peak Influence 99 | . 99 . . 50 Initial 24 | . . . . 24 Average 8 | . 14 . . 10 Influence Increases 353 | . 173 . 120 60 Destroy 0b10 Robot/C 300 | . 120 . 120 60 Destroy 0b10 Robot/NC 15 | . 15 . . . Destroy Leader 36 | . 36 . . . Successful Hack 2 | . 2 . . . Influence Decreases 313 | . 173 . 50 90 Entered New Map 46 | . . . . 46 Time Decay 247 | . 173 . 50 24 Lost Part 20 | . . . . 20 Squads Dispatched . | . . . . . Investigation . | . . . . . Extermination . | . . . . . Reinforcement . | . . . . . Assault . | . . . . . Garrison . | . . . . . Intercept . | . . . . . Searches Triggered . | . . . . . Construction Impeded . | . . . . . Haulers Reinforced . | . . . . . Active Scanning Responses . | . . . . . Cargo Convoy Interrupts . | . . . . . Stealth | -11 -10 -10 -10 -8 --------- Run | Yrd Mat Min Sub Rec Distress Signals . | . . . . . Communications Jammed . | . . . . . Distress Signals . | . . . . . Times Spotted 35 | . 9 . 21 5 Peak Tracking Total 6 | . 3 . 6 5 Tactical Retreats . | . . . . . Traps | -11 -10 -10 -10 -8 ------- Run | Yrd Mat Min Sub Rec Traps Triggered 4 | . 2 . 2 . Indirectly . | . . . . . Trap Hack Attempts . | . . . . . Triggered . | . . . . . Disarmed . | . . . . . Reprogrammed . | . . . . . Reused . | . . . . . Traps Extracted . | . . . . . Installed . | . . . . . Triggered . | . . . . . Machines | -11 -10 -10 -10 -8 ---------- Run | Yrd Mat Min Sub Rec Machines Disabled 1 | . . . 1 . Max in Single Turn 1 | . . . 1 . Machines Repaired . | . . . . . Machines Dismantled . | . . . . . Machines Sabotaged . | . . . . . Overloaded Fab Kills . | . . . . . Hacking | -11 -10 -10 -10 -8 --------- Run | Yrd Mat Min Sub Rec Machines Accessed 4 | . 4 . . . Terminals 3 | . 3 . . . Fabricators . | . . . . . Repair Stations 1 | . 1 . . . Recycling Units . | . . . . . Scanalyzers . | . . . . . Garrison Access . | . . . . . Total Hacks 7 | . 7 . . . Successful 6 | . 6 . . . Failed 1 | . 1 . . . Catastrophic . | . . . . . Database Lockouts . | . . . . . Manual . | . . . . . Terminals 4 | . 4 . . . Fabricators . | . . . . . Repair Stations 3 | . 3 . . . Recycling Units . | . . . . . Scanalyzers . | . . . . . Garrison Access . | . . . . . Terminal Hacks 3 | . 3 . . . Alert Level 1 | . 1 . . . Locate Traps 1 | . 1 . . . Dispatch Records 1 | . 1 . . . Fabricator Hacks . | . . . . . Repair Station Hacks 3 | . 3 . . . Scan Component 2 | . 2 . . . Repair 1 | . 1 . . . Recycling Unit Hacks . | . . . . . Scanalyzer . | . . . . . Garrison Access Hacks . | . . . . . Unauthorized Hacks . | . . . . . Terminals . | . . . . . Fabricators . | . . . . . Repair Stations . | . . . . . Recycling Units . | . . . . . Scanalyzers . | . . . . . Garrison Access . | . . . . . Data Cores Recovered . | . . . . . Used . | . . . . . Hacking Detections 4 | . 4 . . . Full Trace Events . | . . . . . Feedback Events . | . . . . . Feedback Blocked . | . . . . . Robot Schematics Acquired . | . . . . . Robots Built . | . . . . . Authchips . | . . . . . Time . | . . . . . Total Robot Build Rating . | . . . . . Part Schematics Acquired . | . . . . . Parts Built . | . . . . . Authchips . | . . . . . Time . | . . . . . Total Part Build Rating . | . . . . . Part Studies Acquired . | . . . . . Parts Repaired 1 | . 1 . . . Time 26 | . 26 . . . Parts Recycled . | . . . . . Recycled Matter . | . . . . . Retrieved Matter . | . . . . . Retrieved Components . | . . . . . Parts Scanalyzed . | . . . . . Part Schematics Acquired . | . . . . . Parts Damaged . | . . . . . Bothacking | -11 -10 -10 -10 -8 ------------ Run | Yrd Mat Min Sub Rec Used RIF Installer . | . . . . . Robots Hacked . | . . . . . Non-combat . | . . . . . Combat . | . . . . . Robot Hacks Applied . | . . . . . Relay Couplers Released . | . . . . . Fabnet Peak Effective % . | . . . . . Robots Rewired . | . . . . . Allies Hacked . | . . . . . Hacks Repelled . | . . . . . Allies | -11 -10 -10 -10 -8 -------- Run | Yrd Mat Min Sub Rec Total Allies 1 | . . 1 . . Largest Group 1 | . . 1 . . Highest-Rated Group 31 | . . 31 . . Highest-Rated Ally 31 | . . 31 . . Total Orders . | . . . . . Ally Attacks . | . . . . . Total Damage . | . . . . . Kills . | . . . . . Allies Corrupted . | . . . . . Allies Melted . | . . . . . Intel | -11 -10 -10 -10 -8 ------- Run | Yrd Mat Min Sub Rec Active Infowar (turns) . | . . . . . Robot Analysis Total . | . . . . . Derelict Logs Recovered 4 | . . 2 2 . Drone Launches . | . . . . . Drone Recoveries . | . . . . . Exploration | -11 -10 -10 -10 -8 ------------- Run | Yrd Mat Min Sub Rec Turns Passed 3187 | 46 775 617 1652 97 Spaces Moved 3102 | 33 944 896 1175 54 Core 5 | 5 . . . . Treads . | . . . . . Legs 1323 | 28 123 . 1118 54 Wheels . | . . . . . Hover 1774 | . 821 896 57 . Flight . | . . . . . Fastest Speed 50 | 50 52 52 52 110 Average Speed 81 | 109 60 52 119 113 Slowest Speed 130 | 120 120 52 130 120 Overloaded Moves . | . . . . . Propulsion Burnouts . | . . . . . Robots Hopped . | . . . . . Potential Cave-ins . | . . . . . Cave-ins Triggered . | . . . . . Exploration Rate (%) 57 | 5 97 98 73 13 Regions Visited 4 Branch Regions 3 Pre-discovered Areas . | . . . . . Known Exits Taken 4 | 1 1 1 1 . Unknown Exits Taken . | . . . . . Scrap Searched 1 | . . 1 . . Spaces Dug 1 | . . . 1 . Terrain Destroyed 1 | . . . 1 . Melee . | . . . . . Projectile 1 | . . . 1 . AOE . | . . . . . Terrain Rammed . | . . . . . Walls Destroyed . | . . . . . Machines Disabled . | . . . . . Actions | -11 -10 -10 -10 -8 --------- Run | Yrd Mat Min Sub Rec Total 3565 | 39 1114 1047 1291 74 Wait 309 | . 137 148 24 . Move 3098 | 32 943 895 1174 54 Hop . | . . . . . Pick Up 9 | . 5 2 1 1 Fast Attach 15 | 7 1 . 6 1 Attach 2 | . 1 . 1 . Detach . | . . . . . Swap 14 | . 6 . 5 3 Drop 18 | . 3 2 10 3 Fire 96 | . 18 . 70 8 Melee . | . . . . . Ram . | . . . . . Kick . | . . . . . Crush . | . . . . . Escape Stasis . | . . . . . Rewire 4 | . . . . 4 Trap . | . . . . . Miscellaneous . | . . . . . Route ------- -11/Scrapyard -10/Materials (discovered 4 exits: *Mat x3 / *Min) -10/Mines (discovered 3 exits: *Mat x2 / *Sub) -10/Subcaves (discovered 2 exits: *Mat / *Rec) -8/Recycling History --------- Turn | Location | Event 7 | -11/Scrapyard | Identified exit to Materials 7 | -11/Scrapyard | Discovered exit to Materials (range 15) 47 | -11/Scrapyard | Entered Materials 47 | -10/Materials | Evolved 1 slot: Propulsion x1 245 | -10/Materials | Identified exit to Materials 245 | -10/Materials | Discovered exit to Materials (range 16) 303 | -10/Materials | Identified exit to Mines 303 | -10/Materials | Discovered exit to Mines (range 14) 310 | -10/Materials | Build established: Hacker-Mutant 520 | -10/Materials | Discovered exit to Materials (range 10) 607 | -10/Materials | Discovered exit to Materials (range 15) 769 | -10/Materials | Repaired Hover Unit 822 | -10/Materials | Entered Mines 828 | -10/Mines | Found a damaged Exp. Sensor Array with a note attached 831 | -10/Mines | Found Prototype Device 883 | -10/Mines | Learned Materials emergency access door positions 1065 | -10/Mines | Discovered exit to Materials (range 14) 1073 | -10/Mines | Received a Rocket Launcher from a helpful Derelict 1160 | -10/Mines | Received a Mining Laser from a helpful Derelict 1175 | -10/Mines | Discovered exit to Materials (range 7) 1266 | -10/Mines | Identified exit to Subcaves 1266 | -10/Mines | Discovered exit to Subcaves (range 15) 1439 | -10/Mines | Entered Subcaves 1440 | -10/Subcaves | Approached by a straggling Scientist 1493 | -10/Subcaves | Lost 3 allies 1586 | -10/Subcaves | Ambushed by swarm of Subdwellers 1645 | -10/Subcaves | Identified exit to Materials 1645 | -10/Subcaves | Discovered exit to Materials (range 10) 1912 | -10/Subcaves | Build established: Scavenger-Mutant 1940 | -10/Subcaves | Identified exit to Recycling 2193 | -10/Subcaves | Shifting Twisted Machinery released Sub. Power Source 2202 | -10/Subcaves | Shifting Twisted Machinery released Battle Rifle 2337 | -10/Subcaves | Ambushed by Subdweller buried in earth 2698 | -10/Subcaves | A swath of the cavern ceiling suddenly collapsed 2800 | -10/Subcaves | Shifting Twisted Machinery released Sub. Power Source 2801 | -10/Subcaves | Shifting Twisted Machinery released Sub. Monowheel 3051 | -10/Subcaves | Core integrity fell below 50% 3091 | -10/Subcaves | Entered Recycling 3092 | -8/Recycling | Met a Zionite searching for Scraptown 3171 | -8/Recycling | Core integrity fell below 20% 3188 | -8/Recycling | Destroyed by H-55 Commando with Gauss Rifle Last Messages --------------- 03176_ G-47 Trooper destroyed. 03176_ Switching to secondary target: H-55 Commando. 03178_ Carbon-fiber Leg broken. 03178_ Overheating: Short circuit. 03179_ Penetrated by Slug. 03179_ H-55 Commando destroyed. 03179_ Switching to secondary target: L-31 Rogue. 03181_ Overheating: Matter decay (-31). 03181_ Imp. Heat Sink destroyed. 03182_ Penetrated by Slug. 03184_ Power failure, Sub. Power Source shutdown. 03185_ Imp. Aluminum Leg broken. 03185_ Overheating: Short circuit. 03185_ L-31 Rogue destroyed. 03185_ Switching to secondary target: L-31 Rogue. 03186_ Overheating: Sub. Power Source damaged (-11). 03186_ Overheating: Beamcaster damaged (-6). 03188_ Overheating: Broken Carbon-fiber Leg damaged (-2). 03188_ Beamcaster destroyed. 03188_ Penetrated by Slug. Map ----- +----------------------------------------------------+ | ??????????????????????????????????????????????? | | ??????????????????????????????????????????????? | | ??????????????????????????????????????????????? | | ??????????????????????????????????????????????? | | ??????????????????????????????????????????????? | | ??????????????????????????????????????????????? | | ??????????????????????????????????????????????? | | ??????????????????????????????????????????????? | | ??????????????????????????????????????????????? | | ??????????????????????????????????????????????? | | ??????????????????????????????????????????????? | | ??????????????????????????????????????????????? | | ??????????????????????????????????????????????? | | ??????????????????????????????????????????????? | | ??????????????????????????????????????????????? | | ?????????????????????????????????"????????????? | | ?????????????????##########????? ? ??????????? | | ?????????????????#p #???? ?? ??????????? | | ?????????????????#g #??? ""?? """ ??????? | | ?????????????????#s ! !u #?? ""?? """???????? | | ?????????????????#ar g !l#? ?????"""??????#? | | ?????????????????# YisYud # ?????? ??????# | | ?????????????????#u /r???????? ??????? | | ?????????????????#[ /h% k #?????????# #???????? | | ?????????????????+=gp%=lg #??#####??# #???????? | | ?????????????????# @! #??#"""#??# #???????? | | ???????????????# ###r#########"Y"#### ######### | | ???????????????# | | ???????????????+ | | ???????????????# | | ???????????????######"Y"## !!############# %## | | ????????????????????#"""##! #???????????#!==#? | | ????????????????????##########???????????#####? | | ??????????????????????????????????????????????? | | ??????????????????????????????????????????????? | | | | | | | | | | | | | | | | | | | | | | | | | | | | | | | +----------------------------------------------------+ Best States ------------- Heat Dissipation 39 Energy Generation 15 Energy Capacity 200 Matter Stores 300 Matter Capacity 300 Sight Range 16 Terrain Scan Density 10 Armor Coverage 150 Resistance: KI 35 Resistance: TH 35 Resistance: EX 35 Resistance: EM 35 Resistance: I 35 Resistance: S 35 Resistance: P 35 Evasion (%) 55 Targeting Accuracy 5 Offensive Hacking 20 Item Schematics ----------------- None Robot Schematics ------------------ None Fabricated ------------ Nothing Repaired ---------- Hover Unit | 43% | -10/Materials Studied --------- None Alien Tech Used ----------------- None Achievements -------------- Do Not Disturb Challenges ------------ None Game ------ Seed VariableImpulseTrap Manual? 0 Play Time 00:39:14 Cumulative 77.7 hours Start 2026.09.02 @ 20:45:10 End 2026.09.02 @ 21:26:31 Sessions 1 Manual Loads 0 Difficulty Explorer Special Mode None Game No. 7 Rogue 0 Adventurer 0 Explorer 7 Win Type - Total 0 Types 0/0/0/0/0/0/0/0/0/0 Lore% 4 Gallery% 23 Achievement% 21 Wizard Run 0 Options --------- Layout 0 ASCII 0 Keyboard 0 Movement Mouse Keybinds 0 Fullscreen 1 Font 18/SmallcapsGlow Map View 76x50 Zoom Use 0% Tactical HUD 1 Map Filters NONE Filters NONE Steam 1 RUN: 0f0f1ee1-a776-48a5-9a7a-93518a2557ad